fUST/lending_fUST_20240704
["ID","MTS","AMOUNT","RATE_DAILY","PERIOD"]
[331142966,1720102239996,-500.0,0.00013824,2]
[331142968,1720102240006,-500.0,0.00013824,2]
[331142970,1720102240016,-500.0,0.00013824,2]
[331142972,1720102240026,-500.0,0.00013824,2]
[331142974,1720102240036,-500.0,0.00013824,2]
[331142976,1720102240046,-500.0,0.00013824,2]
[331142978,1720102240056,-500.0,0.00013824,2]
[331142980,1720102240065,-500.0,0.00013824,2]
[331142982,1720102240075,-500.0,0.00013824,2]
[331142984,1720102240085,-500.0,0.00013824,2]
[331142986,1720102240096,-500.0,0.00013824,2]
[331142988,1720102240106,-502.22919778,0.00013824,2]
[331142990,1720102240116,-823.61,0.00013824,2]
[331142992,1720102240126,-500.0,0.00013824,2]
[331142994,1720102240136,-500.0,0.00013824,2]
[331142996,1720102240146,-864.84,0.00013824,2]
[331142998,1720102240157,-500.0,0.00013824,2]
[331143000,1720102240167,-500.0,0.00013824,2]
[331143002,1720102240177,-507.2552439,0.00013824,2]
[331143005,1720102240187,-500.0,0.00013824,2]
[331143007,1720102240198,-500.0,0.00013824,2]
[331143010,1720102240209,-792.11,0.00013824,2]
[331143012,1720102240219,-642.32320488,0.00013824,2]
[331143014,1720102240229,-500.0,0.00013824,2]
[331143016,1720102240239,-684.9,0.00013824,2]
[331143018,1720102240249,-503.57475324,0.00013824,2]
[331143019,1720102240258,-500.0,0.00013824,2]
[331143022,1720102240269,-500.0,0.00013824,2]
[331143023,1720102240278,-500.0,0.00013824,2]
[331143025,1720102240288,-500.0,0.00013824,2]
[331143027,1720102240298,-1041.8,0.00013824,2]
[331143029,1720102240308,-500.0,0.00013824,2]
[331143031,1720102240319,-500.0,0.00013824,2]
[331143034,1720102240329,-500.0,0.00013824,2]
[331143036,1720102240339,-500.0,0.00013824,2]
[331143038,1720102240351,-500.0,0.00013824,2]
[331143040,1720102240362,-500.0,0.00013824,2]
[331143041,1720102240371,-500.0,0.00013824,2]
[331143043,1720102240380,-500.0,0.00013824,2]
[331143045,1720102240390,-500.0,0.00013824,2]
[331143048,1720102240402,-500.0,0.00013824,2]
[331143050,1720102240412,-500.0,0.00013824,2]
[331143051,1720102240422,-500.0,0.00013824,2]
[331143053,1720102240431,-1222.89,0.00013824,2]
[331143055,1720102240441,-500.0,0.00013824,2]
[331143057,1720102240452,-535.09,0.00013824,2]
[331143060,1720102240462,-500.0,0.00013824,2]
[331143062,1720102240472,-500.0,0.00013824,2]
[331143063,1720102240482,-500.0,0.00013824,2]
[331143066,1720102240492,-500.0,0.00013824,2]
[331143068,1720102240503,-500.0,0.00013824,2]
[331143070,1720102240514,-502.20351532,0.00013824,2]
[331143072,1720102240524,-500.0,0.00013824,2]
[331143074,1720102240533,-500.0,0.00013824,2]
[331143076,1720102240542,-500.0,0.00013824,2]
[331143078,1720102240552,-500.0,0.00013824,2]
[331143080,1720102240561,-500.0,0.00013824,2]
[331143082,1720102240571,-501.11221528,0.00013824,2]
[331143083,1720102240581,-500.0,0.00013824,2]
[331143085,1720102240590,-500.0,0.00013824,2]
[331143087,1720102240601,-505.0342328,0.00013824,2]
[331143089,1720102240610,-500.0,0.00013824,2]
[331143091,1720102240620,-500.0,0.00013824,2]
[331143093,1720102240629,-500.0,0.00013824,2]
[331143095,1720102240638,-500.0,0.00013824,2]
[331143097,1720102240648,-501.7180616,0.00013824,2]
[331143099,1720102240658,-500.0,0.00013824,2]
[331143102,1720102240667,-503.35064203,0.00013824,2]
[331143104,1720102240677,-500.0,0.00013824,2]
[331143106,1720102240686,-500.0,0.00013824,2]
[331143108,1720102240696,-502.40677762,0.00013824,2]
[331143110,1720102240706,-500.0,0.00013824,2]
[331143112,1720102240716,-500.0,0.00013824,2]
[331143114,1720102240725,-500.0,0.00013824,2]
[331143116,1720102240735,-500.0,0.00013824,2]
[331143118,1720102240744,-500.0,0.00013824,2]
[331143120,1720102240754,-502.06658605,0.00013824,2]
[331143122,1720102240764,-500.0,0.00013824,2]
[331143124,1720102240775,-500.0,0.00013824,2]
[331143126,1720102240788,-500.0,0.00013824,2]
[331143128,1720102240798,-500.0,0.00013824,2]
[331143130,1720102240807,-500.0,0.00013825,2]
[331143132,1720102240818,-500.0,0.00013825,2]
[331143134,1720102240828,-500.0,0.00013825,2]
[331143135,1720102240837,-505.79478751,0.00013825,2]
[331143137,1720102240847,-476.562651,0.00013825,2]
[331143139,1720102240858,-500.0,0.00013825,2]
[331143141,1720102240868,-500.0,0.00013825,2]
[331143143,1720102240877,-917.3,0.00013825,2]
[331143145,1720102240886,-784.65,0.00013825,2]
[331143147,1720102240896,-500.0,0.00013825,2]
[331143149,1720102240907,-500.0,0.00013825,2]
[331143151,1720102240916,-500.0,0.00013825,2]
[331143153,1720102240925,-500.0,0.00013825,2]
[331143155,1720102240935,-500.0,0.00013825,2]
[331143157,1720102240945,-500.0,0.00013825,2]
[331143159,1720102240955,-500.0,0.00013825,2]
[331143161,1720102240965,-500.0,0.00013825,2]
[331143163,1720102240974,-500.0,0.00013825,2]
[331143165,1720102240984,-624.93612042,0.00013825,2]
[331143167,1720102240993,-420.006378,0.00013825,2]
[331143169,1720102241003,-500.0,0.00013825,2]
[331143171,1720102241012,-500.0,0.00013825,2]
[331143173,1720102241022,-502.08593583,0.00013825,2]
[331143175,1720102241031,-850.47,0.00013826,2]
[331143177,1720102241040,-10150.98,0.00013826,2]
[331143178,1720102241050,-10592.33,0.00013826,2]
[331143180,1720102241059,-606.66,0.00013826,2]
[331143182,1720102241068,-500.0,0.00013826,2]
[331143184,1720102241078,-500.0,0.00013826,2]
[331143187,1720102241087,-1260.31,0.00013826,2]
[331143189,1720102241097,-1260.31,0.00013826,2]
[331143190,1720102241106,-892.72,0.00013826,2]
[331143193,1720102241116,-892.72,0.00013826,2]
[331143195,1720102241126,-500.0,0.00013826,2]
[331143197,1720102241135,-500.0,0.00013826,2]
[331143199,1720102241144,-500.0,0.00013826,2]
[331143201,1720102241153,-500.0,0.00013826,2]
[331143203,1720102241163,-4887.58,0.00013826,2]
[331143205,1720102241173,-500.0,0.00013826,2]
[331143207,1720102241182,-500.0,0.00013826,2]
[331143208,1720102241191,-500.0,0.00013826,2]
[331143210,1720102241200,-500.0,0.00013826,2]
[331143212,1720102241210,-500.0,0.00013826,2]
[331143214,1720102241219,-1050.08,0.00013826,2]
[331143216,1720102241228,-500.0,0.00013826,2]
[331143219,1720102241238,-500.0,0.00013826,2]
[331143220,1720102241247,-500.0,0.00013826,2]
[331143223,1720102241256,-500.0,0.00013826,2]
[331143224,1720102241266,-500.0,0.00013826,2]
[331143226,1720102241275,-617.57,0.00013826,2]
[331143228,1720102241285,-500.0,0.00013826,2]
[331143230,1720102241294,-503.65864481,0.00013826,2]
[331143232,1720102241303,-500.0,0.00013826,2]
[331143234,1720102241312,-500.0,0.00013826,2]
[331143236,1720102241321,-500.0,0.00013826,2]
[331143238,1720102241330,-741.19,0.00013826,2]
[331143240,1720102241339,-500.0,0.00013826,2]
[331143242,1720102241350,-500.0,0.00013826,2]
[331143244,1720102241359,-203.35329202,0.00013826,2]
[331143246,1720102241368,-500.0,0.00013826,2]
[331143248,1720102241376,-844.23,0.00013826,2]
[331143249,1720102241389,-500.0,0.00013826,2]
[331143250,1720102241398,-500.0,0.00013826,2]
[331143251,1720102241407,-598.56859175,0.00013826,2]
[331143252,1720102241416,-500.0,0.00013826,2]
[331143253,1720102241425,-500.0,0.00013826,2]
[331143254,1720102241434,-785.5,0.00013826,2]
[331143255,1720102241443,-643.31,0.00013826,2]
[331143256,1720102241452,-500.0,0.00013826,2]
[331143257,1720102241462,-500.0,0.00013826,2]
[331143258,1720102241471,-500.0,0.00013826,2]
[331143259,1720102241480,-584.23,0.00013826,2]
[331143260,1720102241489,-500.0,0.00013826,2]
[331143261,1720102241498,-577.8491973,0.00013826,2]
[331143262,1720102241510,-410.67064769,0.00013826,2]
[331143263,1720102241520,-500.0,0.00013826,2]
[331143264,1720102241529,-500.0,0.00013826,2]
[331143265,1720102241539,-500.0,0.00013826,2]
[331143266,1720102241548,-500.0,0.00013826,2]
[331143267,1720102241557,-500.0,0.00013826,2]
[331143268,1720102241566,-500.0,0.00013826,2]
[331143269,1720102241575,-500.0,0.00013826,2]
[331143270,1720102241585,-500.0,0.00013826,2]
[331143271,1720102241594,-500.0,0.00013826,2]
[331143272,1720102241603,-500.0,0.00013826,2]
[331143273,1720102241615,-500.0,0.00013827,2]
[331143274,1720102241626,-500.0,0.00013827,2]
[331143275,1720102241635,-500.0,0.00013827,2]
[331143276,1720102241645,-500.0,0.00013827,2]
[331143277,1720102241655,-500.0,0.00013827,2]
[331143278,1720102241664,-500.0,0.00013827,2]
[331143279,1720102241674,-500.0,0.00013827,2]
[331143280,1720102241683,-502.56230673,0.00013827,2]
[331143281,1720102241692,-500.0,0.00013827,2]
[331143282,1720102241701,-790.41,0.00013827,2]
[331143283,1720102241710,-510.15835702,0.00013827,2]
[331143284,1720102241719,-500.0,0.00013827,2]
[331143285,1720102241728,-455.26594778,0.00013827,2]
[331143286,1720102241737,-500.0,0.00013827,2]
[331143287,1720102241747,-500.0,0.00013827,2]
[331143288,1720102241756,-500.0,0.00013827,2]
[331143289,1720102241766,-500.0,0.00013827,2]
[331143290,1720102241779,-265.0,0.00013827,2]
[331143291,1720102241788,-1260.31,0.00013827,2]
[331143292,1720102241798,-500.0,0.00013827,2]
[331143293,1720102241808,-500.0,0.00013827,2]
[331143294,1720102241817,-500.0,0.00013827,2]
[331143295,1720102241827,-892.72,0.00013827,2]
[331143296,1720102241836,-500.0,0.00013827,2]
[331143297,1720102241846,-500.0,0.00013827,2]
[331143298,1720102241858,-512.60662424,0.00013827,2]
[331143299,1720102241868,-500.0,0.00013827,2]
[331143300,1720102241877,-500.0,0.00013827,2]
[331143301,1720102241887,-500.0,0.00013827,2]
[331143302,1720102241896,-500.0,0.00013827,2]
[331143303,1720102241906,-500.0,0.00013827,2]
[331143304,1720102241915,-401.37770729,0.00013827,2]
[331143305,1720102241925,-500.0,0.00013827,2]
[331143306,1720102241934,-501.62237539,0.00013827,2]
[331143307,1720102241945,-507.99358033,0.00013827,2]
[331143308,1720102241956,-500.0,0.00013827,2]
[331143309,1720102241965,-500.0,0.00013827,2]
[331143310,1720102241974,-500.0,0.00013827,2]
[331143311,1720102241984,-500.0,0.00013827,2]
[331143312,1720102241994,-540.58,0.00013827,2]
[331143313,1720102242003,-500.0,0.00013827,2]
[331143314,1720102242012,-500.0,0.00013827,2]
[331143315,1720102242022,-500.0,0.00013827,2]
[331143316,1720102242031,-500.0,0.00013827,2]
[331143317,1720102242041,-500.0,0.00013827,2]
[331143318,1720102242050,-500.0,0.00013827,2]
[331143319,1720102242060,-500.0,0.00013827,2]
[331143320,1720102242070,-508.53978107,0.00013827,2]
[331143321,1720102242079,-500.0,0.00013827,2]
[331143322,1720102242088,-500.0,0.00013827,2]
[331143323,1720102242097,-500.0,0.00013827,2]
[331143324,1720102242107,-500.0,0.00013827,2]
[331143325,1720102242116,-500.0,0.00013827,2]
[331143326,1720102242126,-500.0,0.00013827,2]
[331143327,1720102242135,-321.39129053,0.00013827,2]
[331143328,1720102242144,-305.24475552,0.00013827,2]
[331143329,1720102242153,-500.0,0.00013827,2]
[331143330,1720102242163,-500.0,0.00013827,2]
[331143331,1720102242172,-500.0,0.00013827,2]
[331143332,1720102242181,-500.0,0.00013827,2]
[331143333,1720102242190,-500.0,0.00013827,2]
[331143334,1720102242199,-500.0,0.00013827,2]
[331143335,1720102242209,-500.0,0.00013827,2]
[331143336,1720102242218,-500.0,0.00013827,2]
[331143337,1720102242327,-500.0,0.00013827,2]
[331143338,1720102242336,-500.0,0.00013827,2]
[331143339,1720102242345,-500.0,0.00013827,2]
[331143340,1720102242354,-506.80036557,0.00013827,2]
[331143341,1720102242363,-500.0,0.00013827,2]
[331143342,1720102242372,-500.0,0.00013827,2]
[331143343,1720102242381,-520.42877987,0.00013827,2]
[331143344,1720102242390,-500.0,0.00013827,2]
[331143345,1720102242399,-500.0,0.00013827,2]
[331143346,1720102242408,-502.30151812,0.00013827,2]
[331143347,1720102242417,-500.0,0.00013827,2]
[331143348,1720102242426,-500.0,0.00013827,2]
[331143349,1720102242435,-503.97921124,0.00013827,2]
[331143350,1720102242444,-500.0,0.00013827,2]
[331143351,1720102242453,-500.0,0.00013827,2]
[331143352,1720102242462,-564.71326683,0.00013827,2]
[331143353,1720102242471,-500.95058634,0.00013827,2]
[331143354,1720102242480,-502.37225604,0.00013827,2]
[331143355,1720102242489,-500.0,0.00013827,2]
[331143356,1720102242498,-500.0,0.00013827,2]
[331143357,1720102242509,-500.0,0.00013827,2]
[331143358,1720102242517,-500.0,0.00013827,2]
[331143359,1720102242526,-500.2459715,0.00013827,2]
[331143360,1720102242535,-504.56354981,0.00013827,2]
[331143361,1720102242544,-500.0,0.00013827,2]
[331143362,1720102242553,-500.0,0.00013827,2]
[331143363,1720102242562,-520.12525385,0.00013827,2]
[331143364,1720102242571,-503.86377363,0.00013827,2]
[331143365,1720102242580,-500.0,0.00013827,2]
[331143366,1720102242589,-500.0,0.00013827,2]
[331143367,1720102242598,-500.0,0.00013827,2]
[331143368,1720102242607,-500.0,0.00013827,2]
[331143369,1720102242615,-500.0,0.00013827,2]
[331143370,1720102242624,-504.04426348,0.00013827,2]
[331143371,1720102242634,-500.0,0.00013827,2]
[331143372,1720102242643,-500.0,0.00013827,2]
[331143373,1720102242653,-500.0,0.00013827,2]
[331143374,1720102242662,-1833.86,0.00013827,2]
[331143375,1720102242671,-500.0,0.00013827,2]
[331143376,1720102242680,-500.0,0.00013827,2]
[331143377,1720102242688,-500.0,0.00013827,2]
[331143378,1720102242698,-500.0,0.00013827,2]
[331143379,1720102242709,-500.0,0.00013827,2]
[331143380,1720102242719,-500.0,0.00013827,2]
[331143381,1720102242729,-395.55539709,0.00013827,2]
[331143382,1720102242738,-500.0,0.00013827,2]
[331143383,1720102242747,-586.44041,0.00013827,2]
[331143384,1720102242756,-500.0,0.00013827,2]
[331143385,1720102242765,-500.0,0.00013827,2]
[331143386,1720102242776,-500.0,0.00013827,2]
[331143387,1720102242789,-510.38431698,0.00013827,2]
[331143388,1720102242799,-500.0,0.00013827,2]
[331143389,1720102242808,-510.87458043,0.00013827,2]
[331143390,1720102242819,-500.0,0.00013827,2]
[331143391,1720102242828,-610.4,0.00013827,2]
[331143392,1720102242837,-512.15369897,0.00013827,2]
[331143393,1720102242846,-500.0,0.00013827,2]
[331143394,1720102242855,-500.0,0.00013827,2]
[331143395,1720102242866,-500.0,0.00013827,2]
[331143396,1720102242875,-500.0,0.00013827,2]
[331143397,1720102242884,-501.3233223,0.00013827,2]
[331143398,1720102242892,-500.0,0.00013827,2]
[331143399,1720102242902,-500.0,0.00013827,2]
[331143400,1720102242911,-462.96109698,0.00013827,2]
[331143401,1720102242920,-500.0,0.00013827,2]
[331143402,1720102242930,-270.97337564,0.00013827,2]
[331143403,1720102242939,-500.0,0.00013827,2]
[331143404,1720102242948,-500.0,0.00013827,2]
[331143405,1720102242957,-151.0,0.00013827,2]
[331143406,1720102242967,-151.0,0.00013827,2]
[331143407,1720102242975,-500.0,0.00013827,2]
[331143408,1720102242984,-151.0,0.00013827,2]
[331143409,1720102242994,-151.0,0.00013827,2]
[331143410,1720102243003,-155.552447,0.00013827,2]
[331143411,1720102243012,-1370.070977,0.00013827,2]
[331143412,1720102243022,-1370.070977,0.00013827,2]
[331143413,1720102243031,-568.846848,0.00013827,2]
[331143414,1720102243040,-151.0,0.00013827,2]
[331143415,1720102243049,-937.912638,0.00013827,2]
[331143417,1720102243059,-151.0,0.00013827,2]
[331143418,1720102243069,-937.912638,0.00013827,2]
[331143419,1720102243078,-568.846848,0.00013827,2]
[331143420,1720102243087,-226.799757,0.00013827,2]
[331143422,1720102243097,-500.0,0.00013827,2]
[331143423,1720102243106,-151.0,0.00013827,2]
[331143424,1720102243115,-151.0,0.00013827,2]
[331143425,1720102243125,-151.0,0.00013827,2]
[331143426,1720102243134,-151.0,0.00013827,2]
[331143427,1720102243143,-162.352123,0.00013827,2]
[331143428,1720102243153,-151.0,0.00013827,2]
[331143429,1720102243162,-151.0,0.00013827,2]
[331143430,1720102243172,-500.0,0.00013827,2]
[331143431,1720102243181,-159.244579,0.00013827,2]
[331143432,1720102243190,-500.0,0.00013827,2]
[331143433,1720102243200,-500.0,0.00013827,2]
[331143434,1720102243209,-500.0,0.00013828,2]
[331143435,1720102243218,-1260.31,0.00013828,2]
[331143436,1720102243227,-1260.31,0.00013828,2]
[331143437,1720102243236,-892.72,0.00013828,2]
[331143438,1720102243246,-892.72,0.00013828,2]
[331143439,1720102243255,-513.89317114,0.00013828,2]
[331143440,1720102243264,-500.0,0.00013828,2]
[331143441,1720102243273,-500.0,0.00013828,2]
[331143442,1720102243282,-500.0,0.00013828,2]
[331143443,1720102243291,-151.0,0.00013828,2]
[331143444,1720102243300,-1411.164778,0.00013828,2]
[331143445,1720102243309,-13325.33,0.00013828,2]
[331143446,1720102243318,-617.33,0.00013828,2]
[331143447,1720102243327,-500.0,0.00013828,2]
[331143448,1720102243336,-500.0,0.00013828,2]
[331143449,1720102243345,-16236.5880865,0.00013828,2]
[331143450,1720102243357,-4355.39382535,0.00013829,2]
[331143451,1720102243366,-500.0,0.00013829,2]
[331143452,1720102243375,-151.0,0.00013829,2]
[331143453,1720102243386,-250.469061,0.00013829,2]
[331143454,1720102243395,-151.0,0.00013829,2]
[331143455,1720102243404,-151.0,0.00013829,2]
[331143456,1720102243414,-5969.62,0.00013829,2]
[331143457,1720102243423,-500.0,0.00013829,2]
[331143458,1720102243432,-151.0,0.00013829,2]
[331143459,1720102243441,-151.0,0.00013829,2]
[331143460,1720102243450,-1136.78,0.00013829,2]
[331143461,1720102243459,-151.0,0.00013829,2]
[331143462,1720102243468,-152.694731,0.00013829,2]
[331143463,1720102243477,-1370.070977,0.00013829,2]
[331143464,1720102243487,-1370.070977,0.00013829,2]
[331143465,1720102243495,-500.0,0.00013829,2]
[331143466,1720102243507,-151.0,0.00013829,2]
[331143471,1720102243518,-568.846848,0.00013829,2]
[331143477,1720102243528,-937.912638,0.00013829,2]
[331143481,1720102243537,-568.846848,0.00013829,2]
[331143485,1720102243546,-937.912638,0.00013829,2]
[331143491,1720102243555,-859.58,0.00013829,2]
[331143495,1720102243564,-151.0,0.00013829,2]
[331143499,1720102243572,-158.59027,0.00013829,2]
[331143503,1720102243581,-151.0,0.00013829,2]
[331143506,1720102243590,-1039.35,0.00013829,2]
[331143508,1720102243599,-7397.42,0.00013829,2]
[331143512,1720102243609,-3833.26,0.00013829,2]
[331143516,1720102243618,-1260.31,0.00013838,2]
[331143520,1720102243627,-892.72,0.00013838,2]
[331143523,1720102243637,-150.0,0.00013848,2]
[331143526,1720102243646,-2297.39595545,0.00013861,2]
[331143530,1720102243655,-500.0,0.000139,2]
[331143534,1720102243664,-2297.39595545,0.00013929,2]
[331143538,1720102243674,-2000.0,0.00013991,2]
[331143542,1720102243683,-2297.39595545,0.00013997,2]
[331143545,1720102243692,-500.0,0.00014,2]
[331143548,1720102243700,-309.7057795,0.00014,2]
[331143552,1720102243709,-199.1710651,0.00014,2]
[331143554,1720102243719,-150.0,0.00014021,2]
[331143557,1720102243728,-994.74492046,0.00014049,2]
[331143559,1720102243738,-500.0,0.0001405,2]
[331143561,1720102243747,-6550.15309636,0.00014087,2]
[331143709,1720102245033,-506.12,0.00013816,2]
[331143711,1720102245043,-3673.54,0.00013829,2]
[331143713,1720102245053,-9686.43499014,0.00014087,2]
[331143715,1720102245061,-293.481493,0.00014088,2]
[331143717,1720102245071,-1411.164778,0.00014088,2]
[331143719,1720102245080,-151.0,0.00014088,2]
[331143721,1720102245089,-151.0,0.00014088,2]
[331143723,1720102245098,-16236.5880865,0.00014088,2]
[331143725,1720102245107,-500.0,0.00014089,2]
[331143727,1720102245116,-1422.8,0.00014089,2]
[331143729,1720102245125,-151.0,0.0001409,2]
[331143731,1720102245134,-151.0,0.0001409,2]
[331143733,1720102245143,-151.0,0.0001409,2]
[331143735,1720102245152,-226.216851,0.0001409,2]
[331143737,1720102245163,-229.097218,0.0001409,2]
[331143739,1720102245173,-1370.070977,0.0001409,2]
[331143741,1720102245182,-1370.070977,0.0001409,2]
[331143743,1720102245191,-158.515635,0.0001409,2]
[331143745,1720102245200,-568.846848,0.0001409,2]
[331143747,1720102245209,-937.912638,0.0001409,2]
[331143748,1720102245218,-568.846848,0.0001409,2]
[331143751,1720102245228,-937.912638,0.0001409,2]
[331143753,1720102245237,-32473.176173,0.0001409,2]
[331143754,1720102245247,-33.5484403,0.0001409,2]
[331143757,1720102245260,-400.205078,0.0001409,2]
[331143759,1720102245272,-66.2464817,0.0001409,2]
[331143761,1720102245281,-267.67996833,0.0001409,2]
[331143781,1720102245459,-532.85003167,0.0001409,2]
[331143783,1720102245467,-2726.05554879,0.0001409,2]
[331143789,1720102245509,-465.95445121,0.0001409,2]
[331143791,1720102245519,-500.0,0.0001409,2]
[331143792,1720102245528,-12894.04529008,0.0001409,2]
[331143955,1720102247051,-500.0,0.00013815,2]
[331143957,1720102247060,-4759.95166002,0.0001409,2]
[331143959,1720102247073,-668.9230499,0.0001409,2]
[331143961,1720102247083,-1801.92,0.0001409,2]
[331143963,1720102247092,-151.0,0.0001409,2]
[331143965,1720102247102,-3261.35,0.0001409,2]
[331143968,1720102247112,-1036.59,0.0001409,2]
[331143970,1720102247122,-506.12,0.0001409,2]
[331143973,1720102247132,-14563.84130745,0.00014092,2]
[331146915,1720102321038,509.91756708,9.999e-05,2]
[331146917,1720102466409,155.13981833,9.999e-05,2]
[331146918,1720102492306,934.12399024,9.999e-05,2]
[331146919,1720102525371,531.82036901,9.999e-05,2]
[331146931,1720102886311,29038.82444782,0.0001,7]
[331147017,1720103402656,1000.0,0.00022,30]
[331147018,1720103417967,509.46,0.00010959,2]
[331147076,1720103433258,-300.0,0.00012734,2]
[331147078,1720103433267,-300.0,0.00012734,2]
[331147080,1720103433277,-2235.70352642,0.00012735,2]
[331147083,1720103433289,-5208.66458718,0.00012735,2]
[331147182,1720103439458,-17455.6318864,0.00012735,2]
[331147184,1720103439468,-623.00929186,0.00013513,2]
[331147186,1720103439478,-497.41198965,0.00013682,2]
[331147188,1720103439488,-313.8,0.00013699,2]
[331147190,1720103439502,-1657.91863668,0.00013713,2]
[331147192,1720103439512,-4588.8974704,0.00013727,2]
[331147194,1720103439522,-1657.91863664,0.00013782,2]
[331147196,1720103439532,-500.0,0.000138,2]
[331147198,1720103439542,-7717.6096327,0.00013803,2]
[331147200,1720103439552,-872.85,0.00013803,2]
[331147202,1720103439562,-500.0,0.00013803,2]
[331147204,1720103439572,-830.72,0.00013803,2]
[331147206,1720103439583,-3134.79,0.00013803,2]
[331147209,1720103439731,-500.0,0.00013803,2]
[331147210,1720103439741,-500.0,0.00013803,2]
[331147211,1720103439751,-17973.1,0.00013803,2]
[331147212,1720103439761,-9376.34245567,0.00013803,2]
[331147225,1720103441630,-550.13754433,0.00013803,2]
[331147227,1720103441640,-500.0,0.00013803,2]
[331147229,1720103441649,-437.93952915,0.00013803,2]
[331147231,1720103441661,-1369.30047085,0.00013803,2]
[331147233,1720103441671,-500.0,0.00013803,2]
[331147235,1720103441681,-3231.88,0.00013803,2]
[331147237,1720103441691,-218.79186333,0.00013803,2]
[331147323,1720103444687,-281.20813667,0.00013803,2]
[331147324,1720103444698,-500.0,0.00013803,2]
[331147325,1720103444712,-500.0,0.00013803,2]
[331147326,1720103444722,-2284.51286103,0.00013804,2]
[331147399,1720103447379,-382.69751023,0.00013803,2]
[331147400,1720103447389,-836.48,0.00013803,2]
[331147402,1720103447399,-4727.60146392,0.00013804,2]
[331147404,1720103447411,-705.49530775,0.00013804,2]
[331147405,1720103447421,-52.2997629,0.00013804,2]
[331147408,1720103469695,520.1,0.00010959,2]
[331147410,1720103651859,1400.26910057,0.00010959,2]
[331147412,1720103712372,293.20606944,9.999e-05,2]
[331147414,1720103753441,283.69869237,9.999e-05,2]
[331147419,1720103856211,182.81596833,9.999e-05,2]
[331147420,1720103867784,401.65252924,9.999e-05,2]
[331147426,1720103932093,155.21649304,9.999e-05,2]
[331147431,1720103989651,412.50872029,9.999e-05,2]
[331147432,1720104019647,412.50872029,9.999e-05,2]
[331147433,1720104033611,155.10813606,9.999e-05,2]
[331147435,1720104050563,458.82307956,9.999e-05,2]
[331147436,1720104057663,154.92341564,9.999e-05,2]
[331147437,1720104061568,159.71453487,9.999e-05,2]
[331147439,1720104124205,209.26238641,9.999e-05,2]
[331147440,1720104131913,19316.54266155,9.999e-05,2]
[331147441,1720104151064,776.11834176,9.999e-05,2]
[331147442,1720104154210,155.56243456,9.999e-05,2]
[331147443,1720104157623,154.94486448,9.999e-05,2]
[331147444,1720104167180,415.77244925,9.999e-05,2]
[331147446,1720104283676,-191.97320683,0.0001212,2]
[331147447,1720104283700,-300.0,0.00012792,2]
[331147448,1720104283723,-19508.02679317,0.00012793,2]
[331147460,1720104467199,412.50872029,9.999e-05,2]
[331147462,1720104494157,155.416279,9.999e-05,2]
[331147464,1720104506758,155.67001443,9.999e-05,2]
[331147482,1720104613896,154.88383712,9.999e-05,2]
[331147500,1720104633411,-300.0,0.00012737,2]
[331147501,1720104633421,-300.0,0.00012737,2]
[331147503,1720104633430,-2689.3981383,0.00012738,2]
[331147504,1720104633441,-701.342,0.00012738,2]
[331147505,1720104633452,-321.20253342,0.00012738,2]